[Event "CZE-ch U14 Open 2023"]
[Site "Teplice"]
[Date "2023.03.13"]
[Round "4.4"]
[White "Roubal, Matyas"]
[Black "Zemek, Antonin"]
[Result "0-1"]
[ECO "C02"]
[WhiteElo "1948"]
[BlackElo "1739"]
[Annotator "TA"]
[PlyCount "50"]
[EventDate "2023.03.09"]
[EventType "swiss"]
[EventCountry "CZE"]
[SourceTitle "playchess.com"]
[Source "ChessBase"]
[SourceQuality "1"]
[TimeControl "40/5400+30:1800+30"]

{[%evp 10,50,0,0,22,7,25,0,28,0,0,-31,-40,-31,-27,-30,-15,-28,-32,-58,-59,-70,-76,-71,-65,-52,-54,-90,-81,-147,-145,-555,-529,-628,-589,-1511,-1483,-1443,-1987,-2073,-2066,-1782,-1945]} 1. e4 {[%emt 0:00:02]} e6 {[%emt 0:00:17]} 2. d4 {[%emt 0:00:19]} d5 {[%emt 0:00:40]} 3. e5 {[%emt 0:00:45]} c5 {[%emt 0:00:40]} 4. c3 {[%emt 0:00:04]} Qb6 {[%emt 0:01:11]} 5. Nf3 {[%emt 0:00:17]} Nc6 {[%emt 0:01:02]} 6. Na3 {[%emt 0:01:39]} Bd7 {[%emt 0:02:54] C02: French: Advance Variation.} 7. Nc2 {[%emt 0:00:33]} Nge7 {[%emt 0:01:54]} 8. Be2 {[%emt 0:10:27]} Nf5 {[%emt 0:02:21] The position is equal.} 9. g4 {[%emt 0:02:34]} Nfe7 {[%emt 0:01:57]} 10. O-O {[%emt 0:07:18]} Ng6 {[%emt 0:03:21] [#]} 11. Nfe1 $146 {[%emt 0:09:01][%cal Ob2b4]} ({Predecessor:} 11. Be3 c4 12. Rb1 Be7 13. Bg5 Qd8 14. Qd2 f6 15. exf6 gxf6 16. Be3 Qc7 17. h3 {½-½ Paiva,P (1513)-De Moura,V (1799) BRA-ch Amateur 2015 (4)}) 11... f6 {[%emt 0:02:13]} 12. exf6 gxf6 13. dxc5 {[%emt 0:04:56]} Bxc5 {[%emt 0:00:51]} 14. Nd3 {[%emt 0:01:01]} Bd6 $1 {[%emt 0:02:50]} 15. Be3 {[%emt 0:01:23]} Qc7 {[%emt 0:00:54] Black is more active.} 16. f4 {[%emt 0:00:06] [#]} O-O-O $1 {[%emt 0:01:48]} 17. Nd4 {[%emt 0:01:40]} a6 {[%emt 0:05:07] Against Nb5} 18. b4 {[%emt 0:01:43]} e5 {[%emt 0:02:27]} 19. Nxc6 {[%emt 0:01:17]} (19. fxe5 $142 fxe5 20. Nf5) 19... Bxc6 $17 {[%emt 0:00:46]} 20. f5 $2 {[%emt 0:07:03][%mdl 8192] [#] White does not recover from this.} (20. a4 $17 {is tougher.} e4 {[%mdl 64] Deflection} 21. Nc5 Nxf4 22. Kh1 Nxe2 23. Qxe2) 20... d4 $1 $19 {[%emt 0:03:58][%mdl 512] Black is clearly winning.} 21. fxg6 {[%emt 0:11:15] Black must now prevent g7.} (21. b5 axb5) 21... dxe3 {[%emt 0:00:10]} 22. Qb3 {[%emt 0:03:15]} hxg6 {[%emt 0:01:22]} 23. Qe6+ {[%emt 0:02:33]} Kb8 {[%emt 0:00:11] ( -> ...Qh7)} 24. Qxf6 {[%emt 0:01:36]} e4 {[%emt 0:03:59][%csl LRd3,LRh2]} 25. Nf4 {[%emt 0:00:09]} Rdf8 {[%emt 0:02:17] Weighted Error Value: White=0.65/Black=0.03 (flawless)} ({Avoid the trap} 25... Qh7 $2 26. h4 Qxh4 27. Qxh4 Rxh4 28. Rad1 $19) 0-1

[Event "CZE-ch U14 Open 2023"]
[Site "Teplice"]
[Date "2023.03.13"]
[Round "4.5"]
[White "Babula, Matej"]
[Black "Jasso, Matej"]
[Result "1/2-1/2"]
[ECO "B90"]
[WhiteElo "1796"]
[BlackElo "1934"]
[Annotator "TA"]
[PlyCount "115"]
[EventDate "2023.03.09"]
[EventType "swiss"]
[EventCountry "CZE"]
[SourceTitle "playchess.com"]
[Source "ChessBase"]
[SourceQuality "1"]
[TimeControl "40/5400+30:1800+30"]

{[%evp 16,115,67,67,43,40,127,107,129,116,118,109,112,139,134,35,29,29,41,26,84,51,54,53,49,61,60,52,67,80,80,75,67,70,127,0,0,0,0,8,49,49,50,56,64,0,20,12,11,14,17,0,0,0,3,8,8,0,60,60,58,54,55,50,63,63,156,70,72,70,391,388,321,337,485,443,388,112,112,112,112,8,8,8,8,8,29,29,29,29,29,29,29,29,29,29,29,29,29,8,8,8]} 1. e4 {[%emt 0:00:02]} c5 {[%emt 0:00:09]} 2. Nf3 {[%emt 0:00:04]} d6 {[%emt 0:00:03]} 3. d4 {[%emt 0:00:06]} cxd4 {[%emt 0:00:07]} 4. Nxd4 {[%emt 0:00:05]} Nf6 {[%emt 0:00:05]} 5. Nc3 {[%emt 0:00:04]} a6 {[%emt 0:00:04]} 6. Bc4 {[%emt 0:00:07]} e6 {[%emt 0:00:04]} 7. Bb3 {[%emt 0:00:04]} Be7 {[%emt 0:00:07]} 8. g4 {[%emt 0:00:19][%cal Bg2g4,Bg4g5][%mdl 32]} Nc6 {[%emt 0:00:54]} 9. g5 {[%emt 0:02:32]} Nd7 {[%emt 0:01:52] B86: Sicilian Scheveningen/Najdorf: 6 Bc4, without early ...b5.} 10. Bxe6 {[%emt 0:02:37]} Nde5 {[%emt 0:01:48]} (10... O-O $1 $14) 11. Nxc6 $1 $16 {[%emt 0:08:04]} bxc6 {[%emt 0:01:32] White is better.} 12. Bxc8 {[%emt 0:01:31]} Qxc8 {[%emt 0:01:07]} 13. f4 {[%emt 0:06:07]} Ng6 {[%emt 0:01:14] [#]} 14. h4 $146 {[%emt 0:08:51]} ({Predecessor:} 14. Be3 Qh3 15. Qe2 Qh4+ 16. Qf2 Qxf2+ 17. Kxf2 Rb8 18. b3 f6 19. h4 Rf8 20. Kg3 {1-0 Caceres Recalde,F (2216)-Lope de Vergara,G (1737) Buenos Aires Duchamp Boca op 3rd 2013 (2)}) 14... h6 {[%emt 0:01:08]} 15. f5 {[%emt 0:16:18]} (15. gxh6 $1 $16 Rxh6 16. h5) 15... Ne5 $14 {[%emt 0:01:17]} 16. gxh6 {[%emt 0:05:09]} gxh6 {[%emt 0:04:11]} 17. Bf4 {[%emt 0:01:52]} Qd8 {[%emt 0:01:33]} (17... Qb7 $11 {remains equal.}) 18. Bxe5 {[%emt 0:08:08]} Bxh4+ {[%emt 0:00:12]} 19. Ke2 {[%emt 0:00:17]} dxe5 {[%emt 0:00:48]} 20. Qxd8+ {[%emt 0:00:15]} Bxd8 {[%emt 0:00:07]} 21. Rad1 {[%emt 0:02:01]} Be7 {[%emt 0:03:16] [#] Inhibits Rd6.} 22. f6 $1 {[%emt 0:03:33][%mdl 64] Deflection} Bxf6 {[%emt 0:09:09]} 23. Rd6 {[%emt 0:00:12][%csl LRc6,LRf6]} Bg5 {[%emt 0:00:04]} 24. Rxc6 {[%emt 0:00:10] White has more active pieces. The black rooks are badly placed.} Rd8 {[%emt 0:00:05] Prevents Nd5.} (24... Kd7 $14 25. Rb6 Rhd8) 25. Rxa6 {[%emt 0:07:38]} (25. Nd5 $1 $16) 25... Rd2+ $11 {[%emt 0:01:14]} 26. Kf3 {[%emt 0:00:13] aiming for Ra8+.} O-O $1 {[%emt 0:00:33]} 27. Rg1 {[%emt 0:02:10]} Rxc2 {[%emt 0:05:20]} 28. Rxh6 {[%emt 0:00:28][%cal Rg1g5]} f6 {[%emt 0:00:20]} 29. Nd5 $1 {[%emt 0:05:37]} Kg7 {[%emt 0:00:49]} 30. Rh5 {[%emt 0:03:20]} ({White should try} 30. Ne3 $14 Kxh6 31. Nxc2) 30... Rxb2 {[%emt 0:01:35]} (30... Kg6 $5 {[%cal Rg6h5]} 31. Rh4 Rxb2 $11) 31. Rgh1 {[%emt 0:00:55] Rh7+ would kill now.} Kg6 32. Ne7+ {[%emt 0:05:54]} Kf7 {[%emt 0:08:32]} 33. Rh7+ {[%emt 0:00:22]} (33. Nf5 $5 {[%cal Rh5h7]} Ke6 34. Ng7+ Kd6 35. Rd1+ Rd2 36. Rxd2+ Bxd2 37. Rh2 $11) 33... Ke6 {[%emt 0:00:16]} 34. Nf5 {[%emt 0:01:19][%csl Gf5][%cal Rh7e7]} Rf7 {[%emt 0:00:07] Against Re7+} 35. Rxf7 {[%emt 0:04:05]} Kxf7 {[%emt 0:00:08][%mdl 4096] Endgame KRB-KRN} 36. Rh7+ {[%emt 0:00:09]} Ke8 {[%emt 0:03:15]} (36... Kg6 $11 37. Ra7 Kh5) 37. Nd6+ $14 {[%emt 0:02:22]} Kf8 {[%emt 0:04:00][%cal Ob2d2]} 38. Rf7+ {[%emt 0:00:27]} Kg8 {[%emt 0:00:11]} 39. Ra7 {[%emt 0:00:24]} Rb6 {[%emt 0:01:01]} 40. Nf5 {[%emt 0:00:50] Hoping for a4.} Bd2 {[%emt 0:00:55]} (40... Rb2 $14) 41. a4 {[%emt 0:34:44]} ({White should play} 41. Ne7+ $1 $16 Kf8 42. Nd5) 41... Rb3+ {[%emt 0:31:39]} 42. Kg4 {[%emt 0:00:51] Threatens to win with Kh5.} Kf8 $2 {[%emt 0:03:11][%mdl 8192]} ({Better is} 42... Rb1 $1 $14) 43. Kh5 $18 {[%emt 0:00:00]} Ke8 {[%emt 0:00:00]} 44. Kg6 {[%emt 0:00:00]} Rb6 {[%emt 0:00:00]} (44... Kd8 {was called for.} 45. Kxf6 Rb6+ 46. Kxe5 Kc8) 45. a5 $1 {[%emt 0:00:00]} Rc6 {[%emt 0:00:00] [#]} 46. a6 $2 {[%emt 0:00:00]} (46. Ne7 $1 $18 {[%cal Re7c6] and the rest is easy.} Rc1 47. Kxf6) 46... Kd8 $16 {[%emt 0:00:00]} 47. Ne7 {[%emt 0:00:00]} Rc7 {[%emt 0:00:00] [#]} 48. Rxc7 {[%emt 0:00:00]} ({White has to play} 48. Ra8+ $1 $16 Kxe7 49. a7) 48... Kxc7 {[%emt 0:00:00] KB-KN} 49. Nd5+ {[%emt 0:00:00]} (49. a7 {with more complications.} Kb7 50. Nc6 Bg5 51. Kf5) 49... Kb8 {[%emt 0:00:00]} 50. Kxf6 {[%emt 0:00:00]} Ka7 {[%emt 0:00:00]} 51. Kxe5 {[%emt 0:00:00]} Kxa6 {[%emt 0:00:00]} 52. Kf5 {[%emt 0:00:00]} Bc1 {[%emt 0:00:00]} 53. e5 {[%emt 0:00:00][%cal Be4e5,Be5e6][%mdl 32]} Kb7 {[%emt 0:00:00]} 54. e6 {[%emt 0:00:00] Threatening mate with e7.} Ba3 {[%emt 0:00:00]} 55. Kf6 {[%emt 0:00:00]} Kc8 {[%emt 0:03:26]} 56. Kf7 {[%emt 0:00:00]} Kd8 {[%emt 0:00:12]} 57. e7+ {[%emt 0:00:00]} Bxe7 $1 {[%emt 0:00:06]} 58. Nxe7 {[%emt 0:00:00] White really could win this.   Weighted Error Value: White=0.19 (very precise) /Black=0.30} 1/2-1/2

[Event "CZE-ch U14 Open 2023"]
[Site "Teplice"]
[Date "2023.03.13"]
[Round "4.6"]
[White "Krautschneider, Daniel Jan"]
[Black "Topencik, Bruno"]
[Result "1/2-1/2"]
[ECO "A40"]
[WhiteElo "1679"]
[BlackElo "1844"]
[Annotator "NA RC COMBH"]
[PlyCount "77"]
[EventDate "2023.03.09"]
[EventType "swiss"]
[EventCountry "CZE"]
[SourceTitle "playchess.com"]
[Source "ChessBase"]
[SourceQuality "1"]
[TimeControl "40/5400+30:1800+30"]

1. d4 {[%emt 0:00:06]} e6 {[%emt 0:00:14]} 2. Bf4 {[%emt 0:00:08]} Nf6 {[%emt 0:00:09]} 3. e3 {[%emt 0:00:07]} d5 {[%emt 0:00:06]} 4. c3 {[%emt 0:00:04]} Bd6 {[%emt 0:00:06]} 5. Bg3 {[%emt 0:00:06]} c5 {[%emt 0:00:11]} 6. Nd2 {[%emt 0:00:07]} Qc7 {[%emt 0:01:21]} 7. Ngf3 {[%emt 0:00:29]} Nbd7 {[%emt 0:00:46]} 8. Bd3 {[%emt 0:00:25]} b6 {[%emt 0:01:17]} 9. Qc2 {[%emt 0:00:29]} c4 {[%emt 0:02:02]} 10. Be2 {[%emt 0:00:13]} Bb7 {[%emt 0:02:15]} 11. O-O {[%emt 0:01:59]} O-O {[%emt 0:01:55]} 12. b3 {[%emt 0:11:43]} b5 {[%emt 0:05:15]} 13. a4 {[%emt 0:05:29]} a6 {[%emt 0:07:58]} 14. axb5 {[%emt 0:05:45]} axb5 {[%emt 0:01:11]} 15. b4 {[%emt 0:00:48]} Bxg3 {[%emt 0:09:34]} 16. hxg3 {[%emt 0:00:17]} Ne4 {[%emt 0:00:11]} 17. Nxe4 {[%emt 0:14:21]} dxe4 {[%emt 0:00:56]} 18. Nd2 {[%emt 0:00:27]} f5 {[%emt 0:05:49]} 19. Qb2 {[%emt 0:06:45]} Nf6 {[%emt 0:12:45]} 20. Rxa8 {[%emt 0:06:30]} Rxa8 {[%emt 0:01:53]} 21. Ra1 {[%emt 0:00:16]} Qb8 {[%emt 0:01:36]} 22. Nb1 {[%emt 0:03:06]} Nd5 {[%emt 0:02:28]} 23. Kf1 {[%emt 0:05:59]} Kf7 {[%emt 0:11:29]} 24. Ke1 {[%emt 0:16:52]} g5 {[%emt 0:04:48]} 25. Rxa8 {[%emt 0:04:09]} Qxa8 {[%emt 0:02:37]} 26. Kd2 {[%emt 0:01:56]} Qb8 {[%emt 0:10:34]} 27. Qc1 {[%emt 0:01:53]} f4 {[%emt 0:02:17]} 28. gxf4 {[%emt 0:00:55]} gxf4 {[%emt 0:00:17]} 29. Qh1 {[%emt 0:00:58]} fxe3+ {[%emt 0:02:05]} 30. fxe3 {[%emt 0:00:21]} Nf6 {[%emt 0:04:48]} 31. Qh3 {[%emt 0:04:37]} Qa8 {[%emt 0:01:31]} 32. Bd1 {[%emt 0:00:56]} Qg8 {[%emt 0:02:34]} 33. Qh2 {[%emt 0:03:20]} Bc8 {[%emt 0:00:31]} 34. Be2 {[%emt 0:00:43]} Bd7 {[%emt 0:00:26]} 35. Na3 {[%emt 0:01:44]} Qa8 {[%emt 0:02:28]} 36. Nc2 {[%emt 0:00:13]} Qa2 {[%emt 0:00:53]} 37. Qf4 {[%emt 0:01:32]} Qa8 {[%emt 0:01:06]} 38. g4 {[%emt 0:00:41]} Ke7 {[%emt 0:00:12]} 39. g5 {[%emt 0:01:08]} 1/2-1/2

[Event "CZE-ch U14 Open 2023"]
[Site "Teplice"]
[Date "2023.03.13"]
[Round "4.7"]
[White "Vlcek, Vojtech"]
[Black "Popov, Roman"]
[Result "1/2-1/2"]
[ECO "D31"]
[WhiteElo "1671"]
[BlackElo "2353"]
[Annotator "TA"]
[PlyCount "116"]
[EventDate "2023.03.09"]
[EventType "swiss"]
[EventCountry "CZE"]
[SourceTitle "playchess.com"]
[Source "ChessBase"]
[SourceQuality "1"]
[TimeControl "40/5400+30:1800+30"]

{[%evp 14,116,39,8,48,32,35,21,22,16,48,57,71,68,85,72,100,82,83,79,166,139,208,55,50,58,85,34,70,78,206,220,209,218,211,180,180,153,158,148,166,160,175,171,170,164,186,163,163,154,218,218,268,253,281,285,273,202,266,246,315,310,361,361,354,338,404,227,266,275,277,252,242,243,267,264,283,258,277,259,392,390,374,362,420,393,412,408,358,397,401,323,445,447,578,592,544,435,315,0,0,0,0,0,0]} 1. d4 {[%emt 0:00:28]} d5 {[%emt 0:00:32]} 2. c4 {[%emt 0:00:22]} c6 {[%emt 0:00:32]} 3. Nc3 {[%emt 0:00:28]} e6 {[%emt 0:01:19]} 4. Nf3 {[%emt 0:00:36]} f5 {[%emt 0:01:30]} 5. g3 {[%emt 0:01:29]} Nf6 {[%emt 0:01:48]} 6. Bg2 {[%emt 0:02:49]} Bd6 {[%emt 0:01:34]} 7. Bf4 {[%emt 0:01:09]} O-O {[%emt 0:05:04]} 8. O-O {[%emt 0:00:59]} Ne4 {[%emt 0:03:35] A90: Dutch Defence: Miscellaneous and Modern Stonewall (with ...Bd6).} 9. Bxd6 {[%emt 0:05:53]} Qxd6 {[%emt 0:02:00]} 10. Ne5 {[%emt 0:13:45]} Nd7 {[%emt 0:04:40]} 11. f4 {[%emt 0:04:42]} Ndf6 {[%emt 0:11:35]} 12. Bxe4 {[%emt 0:02:54] [#]} dxe4 $146 {[%emt 0:08:28]} ({Predecessor:} 12... fxe4 13. c5 Qe7 14. b4 Nd7 15. e3 Nxe5 16. fxe5 Rxf1+ 17. Qxf1 b6 18. Na4 b5 {0-1 Ivanov,S (2286)-Ninov,D (2219) Sofia-ch U26 2013 (7)}) 13. e3 {[%emt 0:01:38]} b6 {[%emt 0:07:33]} 14. Rf2 {[%emt 0:05:46]} Bb7 {[%emt 0:06:27]} 15. Rd2 {[%emt 0:01:45]} Rad8 {[%emt 0:05:38]} 16. a3 {[%emt 0:01:08]} a6 {[%emt 0:07:10]} (16... Qc7 $16) 17. Qb3 {[%emt 0:02:01]} c5 {[%emt 0:05:51] [#]} (17... b5 $16) 18. d5 $2 {[%emt 0:03:05]} b5 {[%emt 0:04:44]} 19. Rad1 {[%emt 0:01:05]} exd5 {[%emt 0:01:29] [#]} 20. cxb5 {[%emt 0:01:55]} (20. a4 $1 $16) 20... Qb6 {[%emt 0:03:11]} 21. Na4 $1 {[%emt 0:02:14][%cal Bc3a4,Ba4c5,Bc5b3,Bb3d4][%mdl 32] White is much more active. A dynamic duo of knights.} Qxb5 {[%emt 0:03:48]} (21... Qd6 $16 {is a better defense.}) 22. Qxb5 $18 {[%emt 0:00:13][%mdl 64] Remove Defender} axb5 {[%emt 0:00:01]} 23. Nxc5 {[%emt 0:00:09]} Bc8 {[%emt 0:00:53]} 24. Nc6 {[%emt 0:02:40]} Rd6 {[%emt 0:01:22]} 25. Nb4 {[%emt 0:06:09]} Rfd8 {[%emt 0:01:03]} 26. Nb3 {[%emt 0:01:11]} g6 {[%emt 0:01:57]} 27. h3 {[%emt 0:00:07]} Kf7 {[%emt 0:00:52]} 28. Nd4 {[%emt 0:00:13]} Bd7 {[%emt 0:01:16]} 29. Rc2 {[%emt 0:00:13][%cal Bd2c2,Bc2c5,Bc5c7,Bc7a7,Ba7a5][%mdl 32]} Rb8 {[%emt 0:02:50]} 30. Rdc1 {[%emt 0:00:43]} Ne8 {[%emt 0:02:16]} 31. Rc5 {[%emt 0:01:37]} Nf6 {[%emt 0:00:26]} (31... Ng7 $16 {was called for.} 32. Nbc6 (32. Nxd5 Ne6 $14) (32. Rxd5 Rxd5 33. Nxd5 Ne6 $16) 32... Bxc6) 32. Rc7 {[%emt 0:00:10]} Ne8 {[%emt 0:02:21]} 33. Ra7 {[%emt 0:00:26]} Kg8 {[%emt 0:00:46]} 34. Rc5 {[%emt 0:00:17]} Nf6 {[%emt 0:00:59]} 35. Ra5 {[%emt 0:01:19]} h6 {[%emt 0:01:02]} 36. Kf2 {[%emt 0:02:33]} (36. Nxb5 Bxb5 37. Raxb5 (37. Rcxb5 Rxb5 38. Rxb5 d4 $16) 37... Rxb5 38. Rxb5 d4 $16) 36... g5 {[%emt 0:00:38]} 37. Nxb5 {[%emt 0:02:04]} Bxb5 {[%emt 0:00:26]} 38. Raxb5 {[%emt 0:00:07]} (38. Rcxb5 Rc8 39. Rc5 (39. Nxd5 Rc2+ 40. Kg1 Rc1+ 41. Kh2 Rc2+ 42. Kh1 Rc1+ 43. Kh2 Rc2+ 44. Kh1 Rc1+ 45. Kh2 $11) 39... Rxc5 40. Rxc5 Kf7 41. Rc7+ Ke8 $18) 38... Rxb5 {[%emt 0:00:07]} 39. Rxb5 {[%emt 0:00:04][%mdl 4096] Endgame KRN-KRN} Kg7 {[%emt 0:01:33]} 40. Rc5 {[%emt 0:00:38]} (40. a4 $142) 40... gxf4 {[%emt 0:00:35]} 41. gxf4 {[%emt 0:30:20]} d4 {[%emt 0:08:31]} 42. exd4 {[%emt 0:00:00]} (42. Rxf5 $6 d3 43. Ke1 Rb6 $18) 42... Rxd4 {[%emt 0:00:12] [#]} 43. Ke2 {[%emt 0:00:00] Against Rd2+} (43. Rxf5 Rd2+ 44. Ke3 Rxb2 $14) (43. Ke3 $6 Rd1 44. Rxf5 Rh1 $16) 43... Nh5 {[%emt 0:06:14]} 44. Ke3 {[%emt 0:00:00]} (44. Rxf5 $2 Ng3+ 45. Kf2 Nxf5 $19) 44... Rd1 {[%emt 0:01:13]} 45. Rxf5 {[%emt 0:00:00]} Ng3 {[%emt 0:00:13]} 46. Re5 {[%emt 0:00:00] Threatens to win with Kf2.} Rf1 {[%emt 0:03:08]} (46... Kg6 $142 47. Kf2 {[%mdl 64] Deflection} Nf5 48. Rxe4 Rh1 49. Re6+ Kf7) 47. Nd5 {[%emt 0:00:00]} Rf3+ {[%emt 0:01:06]} 48. Kd2 {[%emt 0:00:00]} Rd3+ {[%emt 0:01:22]} 49. Kc2 {[%emt 0:00:00]} Nf1 {[%emt 0:01:34][%cal Od3d5]} 50. Nc3 {[%emt 0:09:06]} ({Weaker is} 50. Rxe4 Rxd5 51. a4 Rc5+ 52. Kd3 Rh5 $14) 50... Rxh3 {[%emt 0:06:36]} 51. Rxe4 {[%emt 0:04:07]} ({Less strong is} 51. Nxe4 Rf3 52. Nc3 Ne3+ 53. Kb3 Ng4 $18) 51... h5 {[%emt 0:01:00][%cal Bh6h5,Bh5h4,Bh4h3,Bh3h2][%mdl 32]} 52. b4 {[%emt 0:13:31][%cal Bb2b4,Bb4b5][%mdl 32] And now b5 would win.} Rg3 {[%emt 0:01:49]} 53. b5 {[%emt 0:02:50]} Rg6 {[%emt 0:00:42]} 54. a4 {[%emt 0:01:12] aiming for a5.} h4 {[%emt 0:00:36]} 55. f5 {[%emt 0:00:12]} Rg2+ {[%emt 0:00:20]} 56. Kd1 $2 {[%emt 0:03:54]} ({Don't do} 56. Kd3 h3 57. Rh4 Rd2+ 58. Ke4 h2) ({White should try} 56. Kc1 $18 h3 57. b6) 56... h3 $1 $11 {[%emt 0:00:36] White must now prevent ...h2. The position is equal.} 57. f6+ {[%emt 0:01:26]} Kf7 $1 {[%emt 0:00:56][%cal Oh3h2] Hoping for ...h2!} 58. Ne2 {[%emt 0:02:56] Wards off h2} h2 {[%emt 0:02:16] Weighted Error Value: White=0.27 (precise) /Black=0.31} 1/2-1/2

[Event "CZE-ch U14 Open 2023"]
[Site "Teplice"]
[Date "2023.03.13"]
[Round "4.8"]
[White "Veverka, Vladimir"]
[Black "Ocelak, David"]
[Result "0-1"]
[ECO "A03"]
[WhiteElo "1735"]
[BlackElo "1608"]
[Annotator "NA RC COMBH"]
[PlyCount "52"]
[EventDate "2023.03.09"]
[EventType "swiss"]
[EventCountry "CZE"]
[SourceTitle "playchess.com"]
[Source "ChessBase"]
[SourceQuality "1"]
[TimeControl "40/5400+30:1800+30"]

1. f4 {[%emt 0:00:26]} d5 {[%emt 0:01:34]} 2. e3 {[%emt 0:00:32]} c5 {[%emt 0:02:55]} 3. Nf3 {[%emt 0:00:08]} Nf6 {[%emt 0:00:30]} 4. Be2 {[%emt 0:00:29]} Nc6 {[%emt 0:00:52]} 5. O-O {[%emt 0:00:20]} e6 {[%emt 0:01:04]} 6. b3 {[%emt 0:01:04]} Be7 {[%emt 0:02:28]} 7. Bb2 {[%emt 0:00:25]} O-O {[%emt 0:02:58]} 8. h3 {[%emt 0:02:35]} b6 {[%emt 0:07:20]} 9. d3 {[%emt 0:00:58]} d4 {[%emt 0:02:31]} 10. e4 {[%emt 0:01:27]} Bb7 {[%emt 0:04:04]} 11. Nbd2 {[%emt 0:01:43]} b5 {[%emt 0:01:06]} 12. Qe1 {[%emt 0:03:36]} Qc7 {[%emt 0:11:30]} 13. Nh2 {[%emt 0:05:53]} Nd7 {[%emt 0:08:27]} 14. g4 {[%emt 0:03:27]} Nb4 {[%emt 0:01:52]} 15. Bd1 {[%emt 0:00:59]} f5 {[%emt 0:01:30]} 16. exf5 {[%emt 0:02:33]} e5 {[%emt 0:16:47]} 17. fxe5 {[%emt 0:01:27]} Bg5 {[%emt 0:01:26]} 18. Nhf3 {[%emt 0:06:46]} Be3+ {[%emt 0:01:12]} 19. Kh1 {[%emt 0:03:49]} Nxe5 {[%emt 0:01:45]} 20. Qe2 {[%emt 0:09:48]} Nxf3 {[%emt 0:12:05]} 21. Nxf3 {[%emt 0:00:30]} Rae8 {[%emt 0:00:45]} 22. c3 {[%emt 0:04:50]} Nxd3 {[%emt 0:05:16]} 23. Qxd3 {[%emt 0:01:28]} Qg3 {[%emt 0:01:21]} 24. Qc2 {[%emt 0:01:49]} Qxh3+ {[%emt 0:00:09]} 25. Qh2 {[%emt 0:00:29]} Qxf1+ {[%emt 0:00:05]} 26. Qg1 {[%emt 0:00:15]} Qxg1# 0-1

[Event "CZE-ch U14 Open 2023"]
[Site "Teplice"]
[Date "2023.03.13"]
[Round "4.9"]
[White "Andrle, Filip"]
[Black "Soucek, Andrej"]
[Result "1/2-1/2"]
[ECO "B98"]
[WhiteElo "1721"]
[BlackElo "1679"]
[Annotator "NA RC COMBH"]
[PlyCount "88"]
[EventDate "2023.03.09"]
[EventType "swiss"]
[EventCountry "CZE"]
[SourceTitle "playchess.com"]
[Source "ChessBase"]
[SourceQuality "1"]
[TimeControl "40/5400+30:1800+30"]

1. e4 {[%emt 0:00:04]} c5 {[%emt 0:00:43]} 2. Nf3 {[%emt 0:00:11]} d6 {[%emt 0:00:08]} 3. d4 {[%emt 0:00:07]} cxd4 {[%emt 0:00:05]} 4. Nxd4 {[%emt 0:00:06]} Nf6 {[%emt 0:00:01]} 5. Nc3 {[%emt 0:00:23]} a6 {[%emt 0:00:04]} 6. Bg5 {[%emt 0:00:33]} e6 {[%emt 0:00:53]} 7. f4 {[%emt 0:01:32]} Be7 {[%emt 0:00:58]} 8. Qf3 {[%emt 0:01:03]} Qc7 {[%emt 0:00:23]} 9. O-O-O {[%emt 0:01:21]} b5 {[%emt 0:00:54]} 10. a3 {[%emt 0:02:02]} Bb7 {[%emt 0:04:02]} 11. g4 {[%emt 0:03:28]} Nbd7 {[%emt 0:07:22]} 12. Bxf6 {[%emt 0:04:30]} gxf6 {[%emt 0:03:29]} 13. h4 {[%emt 0:13:19]} Rc8 {[%emt 0:05:16]} 14. g5 {[%emt 0:03:45]} Nc5 {[%emt 0:12:11]} 15. Bd3 {[%emt 0:07:00]} Qa5 {[%emt 0:12:25]} 16. Na2 {[%emt 0:16:58]} f5 {[%emt 0:10:29]} 17. Rhe1 {[%emt 0:07:06]} Nxd3+ {[%emt 0:17:17]} 18. Qxd3 {[%emt 0:00:41]} Bxe4 {[%emt 0:01:13]} 19. Rxe4 {[%emt 0:02:04]} fxe4 {[%emt 0:00:19]} 20. Qxe4 {[%emt 0:00:27]} Qc7 {[%emt 0:01:50]} 21. h5 {[%emt 0:05:05]} d5 {[%emt 0:03:57]} 22. Qf3 {[%emt 0:03:38]} Bc5 {[%emt 0:02:38]} 23. c3 {[%emt 0:02:26]} Qb6 {[%emt 0:02:32]} 24. Kb1 {[%emt 0:01:35]} Bxd4 {[%emt 0:00:17]} 25. Rxd4 {[%emt 0:00:14]} Rc4 {[%emt 0:00:10]} 26. Rd1 {[%emt 0:01:02]} Qc7 {[%emt 0:00:55]} 27. Rd4 {[%emt 0:05:02]} Rxd4 {[%emt 0:00:25]} 28. cxd4 {[%emt 0:00:06]} Qc4 {[%emt 0:01:25]} 29. Qe3 {[%emt 0:00:30]} Kd7 {[%emt 0:01:29]} 30. Nb4 {[%emt 0:03:16]} a5 {[%emt 0:01:53]} 31. Nd3 {[%emt 0:00:09]} Qc7 {[%emt 0:03:54]} 32. Nc5+ {[%emt 0:00:58]} Kc8 {[%emt 0:01:40]} 33. f5 {[%emt 0:03:47]} Qc6 {[%emt 0:03:05]} 34. fxe6 {[%emt 0:05:24]} fxe6 {[%emt 0:00:08]} 35. g6 {[%emt 0:01:27]} hxg6 {[%emt 0:00:29]} 36. hxg6 {[%emt 0:00:07]} Rg8 {[%emt 0:02:22]} 37. Qh3 {[%emt 0:02:09]} Qe8 {[%emt 0:00:18]} 38. Ka2 {[%emt 0:04:12]} Rxg6 {[%emt 0:00:55]} 39. Qh7 {[%emt 0:00:55]} Rg2 {[%emt 0:00:45]} 40. Qb7+ {[%emt 0:01:03]} Kd8 {[%emt 0:00:06]} 41. Qa7 {[%emt 0:30:31]} Qc6 {[%emt 0:06:23]} 42. Qxa5+ {[%emt 0:00:00]} Kc8 {[%emt 0:09:21]} 43. Qe1 {[%emt 0:00:00]} Rc2 {[%emt 0:02:32]} 44. Qe5 {[%emt 0:00:00]} Rxc5 1/2-1/2